[Event "Late-Titled-Tuesday-Blitz-December-26-2023"]
[Site "Chess.com"]
[Date "2023.12.26"]
[Round "4"]
[White "CheckThis4"]
[Black "KnobbedHornbill"]
[Result "1-0"]
[WhiteElo "2728"]
[BlackElo "2521"]
[TimeControl "180+1"]
[EndTime "14:40:40 PST"]
[Termination "CheckThis4 won by checkmate"]

1. e4 {[%clk 0:03:00.9]} 1... c5 {[%clk 0:02:59.9]} 2. Nf3 {[%clk 0:03:00.1]}
2... e6 {[%clk 0:03:00.5]} 3. c3 {[%clk 0:02:59.7]} 3... d5 {[%clk 0:03:00.3]}
4. exd5 {[%clk 0:02:59.3]} 4... Qxd5 {[%clk 0:03:01.2]} 5. d4 {[%clk 0:02:58.7]}
5... Nf6 {[%clk 0:03:01.3]} 6. Na3 {[%clk 0:02:56.8]} 6... Nc6 {[%clk
0:02:59.4]} 7. Nb5 {[%clk 0:02:49.1]} 7... Qd8 {[%clk 0:02:59.2]} 8. dxc5 {[%clk
0:02:40.7]} 8... Bxc5 {[%clk 0:02:50.6]} 9. Qxd8+ {[%clk 0:02:39.8]} 9... Kxd8
{[%clk 0:02:51.2]} 10. Bg5 {[%clk 0:02:37.5]} 10... Ke7 {[%clk 0:02:48.4]} 11.
Bd3 {[%clk 0:02:26.4]} 11... a6 {[%clk 0:02:44]} 12. Nbd4 {[%clk 0:02:25.8]}
12... Bxd4 {[%clk 0:02:39.6]} 13. cxd4 {[%clk 0:02:25.4]} 13... Nb4 {[%clk
0:02:39.4]} 14. Be4 {[%clk 0:02:21]} 14... Rd8 {[%clk 0:02:29.6]} 15. Rc1 {[%clk
0:02:09.7]} 15... h6 {[%clk 0:02:17]} 16. Rc7+ {[%clk 0:01:59.7]} 16... Rd7
{[%clk 0:02:02.5]} 17. Bxf6+ {[%clk 0:01:38.4]} 17... Kxf6 {[%clk 0:02:02.5]}
18. Rc4 {[%clk 0:01:29.8]} 18... a5 {[%clk 0:01:50.5]} 19. a3 {[%clk 0:01:27]}
19... Nd5 {[%clk 0:01:45.2]} 20. Ne5 {[%clk 0:01:23.4]} 20... Rd8 {[%clk
0:01:35.3]} 21. O-O {[%clk 0:01:11.7]} 21... Nf4 {[%clk 0:01:26.8]} 22. Rd1
{[%clk 0:00:46.4]} 22... Rxd4 {[%clk 0:00:46.8]} 23. Ng4+ {[%clk 0:00:33.8]}
23... Kg5 {[%clk 0:00:46.2]} 24. Rdxd4 {[%clk 0:00:30.8]} 24... Ne2+ {[%clk
0:00:46.3]} 25. Kf1 {[%clk 0:00:29.5]} 25... Nxd4 {[%clk 0:00:46.7]} 26. Rxd4
{[%clk 0:00:30]} 26... f5 {[%clk 0:00:43.1]} 27. f4+ {[%clk 0:00:25.6]} 27...
Kxg4 {[%clk 0:00:41.7]} 28. Bf3+ {[%clk 0:00:25]} 28... Kh4 {[%clk 0:00:35.5]}
29. g3+ {[%clk 0:00:20.3]} 29... Kh3 {[%clk 0:00:34.6]} 30. Bg2+ {[%clk
0:00:17]} 30... Kg4 {[%clk 0:00:33.8]} 31. Kf2 {[%clk 0:00:15.3]} 31... Kh5
{[%clk 0:00:34]} 32. Rd8 {[%clk 0:00:12.9]} 32... Kg6 {[%clk 0:00:31]} 33. Rf8
{[%clk 0:00:12.8]} 33... a4 {[%clk 0:00:26.3]} 34. h4 {[%clk 0:00:12.6]} 34...
h5 {[%clk 0:00:23.5]} 35. Bf3 {[%clk 0:00:12.5]} 35... Kh6 {[%clk 0:00:23.4]}
36. Ke3 {[%clk 0:00:12.6]} 36... Kg6 {[%clk 0:00:23.6]} 37. Kd4 {[%clk
0:00:11.3]} 37... Kh6 {[%clk 0:00:20.9]} 38. Kc3 {[%clk 0:00:11.5]} 38... g6
{[%clk 0:00:21.2]} 39. Rd8 {[%clk 0:00:10.5]} 39... Kg7 {[%clk 0:00:20.8]} 40.
Kb4 {[%clk 0:00:10.6]} 40... Kf7 {[%clk 0:00:20]} 41. Bg2 {[%clk 0:00:10.6]}
41... Ke7 {[%clk 0:00:20.3]} 42. Rh8 {[%clk 0:00:10.7]} 42... Kd7 {[%clk
0:00:19.3]} 43. Bf1 {[%clk 0:00:08.2]} 43... b6 {[%clk 0:00:17.6]} 44. Bb5+
{[%clk 0:00:07.4]} 44... Kd6 {[%clk 0:00:17.1]} 45. Rd8+ {[%clk 0:00:07.2]}
45... Ke7 {[%clk 0:00:16.3]} 46. Rg8 {[%clk 0:00:06.3]} 46... Bb7 {[%clk
0:00:15.6]} 47. Rg7+ {[%clk 0:00:06.5]} 47... Kf6 {[%clk 0:00:13.2]} 48. Rxb7
{[%clk 0:00:07.4]} 48... Rd8 {[%clk 0:00:13]} 49. Rxb6 {[%clk 0:00:07.6]} 49...
Rd2 {[%clk 0:00:13.9]} 50. Kxa4 {[%clk 0:00:06.2]} 50... Rxb2 {[%clk 0:00:13.8]}
51. Rb8 {[%clk 0:00:06.3]} 51... Rg2 {[%clk 0:00:14.2]} 52. Rf8+ {[%clk
0:00:06.3]} 52... Ke7 {[%clk 0:00:12.9]} 53. Re8+ {[%clk 0:00:06.7]} 53... Kf7
{[%clk 0:00:13.1]} 54. Rc8 {[%clk 0:00:06.3]} 54... Rxg3 {[%clk 0:00:13.1]} 55.
Kb4 {[%clk 0:00:06.9]} 55... Kf6 {[%clk 0:00:13.2]} 56. a4 {[%clk 0:00:07.4]}
56... Rg4 {[%clk 0:00:14.1]} 57. a5 {[%clk 0:00:07.7]} 57... Rxf4+ {[%clk
0:00:13.6]} 58. Kc5 {[%clk 0:00:08]} 58... Rf2 {[%clk 0:00:11.9]} 59. a6 {[%clk
0:00:08.1]} 59... Ra2 {[%clk 0:00:12.4]} 60. Kb6 {[%clk 0:00:07.9]} 60... e5
{[%clk 0:00:12.5]} 61. Rc4 {[%clk 0:00:07.6]} 61... e4 {[%clk 0:00:12.3]} 62.
Ba4 {[%clk 0:00:07.1]} 62... Rb2+ {[%clk 0:00:11.8]} 63. Kc7 {[%clk 0:00:07.1]}
63... Ke5 {[%clk 0:00:12.4]} 64. a7 {[%clk 0:00:07.1]} 64... Rc2 {[%clk
0:00:10.9]} 65. Rxc2 {[%clk 0:00:06.6]} 65... e3 {[%clk 0:00:11.5]} 66. a8=Q
{[%clk 0:00:07]} 66... Kf4 {[%clk 0:00:11.8]} 67. Qe8 {[%clk 0:00:07.9]} 67...
Kg4 {[%clk 0:00:12.5]} 68. Re2 {[%clk 0:00:07.8]} 68... Kxh4 {[%clk 0:00:12.3]}
69. Rxe3 {[%clk 0:00:08.7]} 69... g5 {[%clk 0:00:12.9]} 70. Qe7 {[%clk
0:00:08.8]} 70... f4 {[%clk 0:00:13.8]} 71. Qe5 {[%clk 0:00:08.5]} 71... f3
{[%clk 0:00:14.7]} 72. Qe4+ {[%clk 0:00:08.4]} 72... g4 {[%clk 0:00:15.6]} 73.
Rxf3 {[%clk 0:00:08.6]} 73... Kg5 {[%clk 0:00:16.4]} 74. Rf5+ {[%clk 0:00:08.9]}
74... Kh4 {[%clk 0:00:16.8]} 75. Qe1+ {[%clk 0:00:07.7]} 75... g3 {[%clk
0:00:17.7]} 76. Rf4+ {[%clk 0:00:07.3]} 76... Kh3 {[%clk 0:00:17.7]} 77. Qh1#
{[%clk 0:00:07.2]} 1-0

[Event "Late-Titled-Tuesday-Blitz-December-26-2023"]
[Site "Chess.com"]
[Date "2023.12.26"]
[Round "4"]
[White "Petukhov_Dmitry"]
[Black "FrenchHarvey"]
[Result "1/2-1/2"]
[WhiteElo "2467"]
[BlackElo "2623"]
[TimeControl "180+1"]
[EndTime "14:40:42 PST"]
[Termination "Game drawn by repetition"]

1. e4 {[%clk 0:03:00]} 1... c5 {[%clk 0:02:57.2]} 2. c3 {[%clk 0:02:59.8]} 2...
d6 {[%clk 0:02:56.7]} 3. d4 {[%clk 0:02:59.4]} 3... Nf6 {[%clk 0:02:57.4]} 4.
dxc5 {[%clk 0:02:59]} 4... Nc6 {[%clk 0:02:56.9]} 5. Bc4 {[%clk 0:02:59]} 5...
Nxe4 {[%clk 0:02:52.8]} 6. Bxf7+ {[%clk 0:02:58.5]} 6... Kxf7 {[%clk 0:02:53.3]}
7. Qh5+ {[%clk 0:02:59.2]} 7... g6 {[%clk 0:02:53]} 8. Qd5+ {[%clk 0:03:00.1]}
8... e6 {[%clk 0:02:38.7]} 9. Qxe4 {[%clk 0:03:01]} 9... d5 {[%clk 0:02:39.2]}
10. Qe3 {[%clk 0:03:01.3]} 10... d4 {[%clk 0:02:37]} 11. cxd4 {[%clk 0:01:53.6]}
11... Qxd4 {[%clk 0:02:35.4]} 12. Nf3 {[%clk 0:01:48.3]} 12... Qxe3+ {[%clk
0:02:31.5]} 13. Bxe3 {[%clk 0:01:49.2]} 13... Nb4 {[%clk 0:02:32]} 14. Na3
{[%clk 0:01:42.8]} 14... Bg7 {[%clk 0:02:30.4]} 15. Bd4 {[%clk 0:01:38.2]} 15...
e5 {[%clk 0:02:28.6]} 16. Bxe5 {[%clk 0:01:33.6]} 16... Nd3+ {[%clk 0:02:28.5]}
17. Kd2 {[%clk 0:01:32.4]} 17... Nxe5 {[%clk 0:02:28.9]} 18. Nxe5+ {[%clk
0:01:33.3]} 18... Bxe5 {[%clk 0:02:28.9]} 19. Nc4 {[%clk 0:01:34.2]} 19... Bd4
{[%clk 0:02:26]} 20. Rac1 {[%clk 0:01:27.9]} 20... Be6 {[%clk 0:02:21.6]} 21.
Nd6+ {[%clk 0:01:16.4]} 21... Kg7 {[%clk 0:02:20]} 22. Nxb7 {[%clk 0:01:10.1]}
22... Bxb2 {[%clk 0:02:16.2]} 23. Rc2 {[%clk 0:01:03.1]} 23... Bf6 {[%clk
0:02:14.4]} 24. c6 {[%clk 0:01:01.6]} 24... Bf5 {[%clk 0:02:11.8]} 25. Rc4
{[%clk 0:01:00.5]} 25... Rac8 {[%clk 0:02:07]} 26. f4 {[%clk 0:00:56.1]} 26...
Rc7 {[%clk 0:02:05.6]} 27. Rhc1 {[%clk 0:00:54.2]} 27... Be6 {[%clk 0:02:01.7]}
28. R4c2 {[%clk 0:00:52.7]} 28... Bd5 {[%clk 0:01:57.9]} 29. g3 {[%clk
0:00:48.5]} 29... Bxc6 {[%clk 0:01:57.7]} 30. Nc5 {[%clk 0:00:45]} 30... Re8
{[%clk 0:01:52.8]} 31. Nd3 {[%clk 0:00:41.3]} 31... Bd4 {[%clk 0:01:44]} 32.
Rxc6 {[%clk 0:00:39.5]} 32... Be3+ {[%clk 0:01:44.3]} 33. Kd1 {[%clk 0:00:38.9]}
33... Rd7 {[%clk 0:01:38.7]} 34. Rc7 {[%clk 0:00:36.1]} 34... Ree7 {[%clk
0:01:37.7]} 35. Rxd7 {[%clk 0:00:36.1]} 35... Rxd7 {[%clk 0:01:38.6]} 36. Rc3
{[%clk 0:00:36.8]} 36... Bg1 {[%clk 0:01:31.2]} 37. Ke2 {[%clk 0:00:34]} 37...
h5 {[%clk 0:01:27.3]} 38. Kf1 {[%clk 0:00:33]} 38... Bd4 {[%clk 0:01:26.5]} 39.
Rb3 {[%clk 0:00:32.7]} 39... Bb6 {[%clk 0:01:26.8]} 40. Kg2 {[%clk 0:00:30.6]}
40... Rc7 {[%clk 0:01:25.8]} 41. Rb2 {[%clk 0:00:26.9]} 41... Rc1 {[%clk
0:01:25.3]} 42. Re2 {[%clk 0:00:24.5]} 42... Kf6 {[%clk 0:01:23.7]} 43. h4
{[%clk 0:00:23.5]} 43... Bd4 {[%clk 0:01:19.5]} 44. Ne5 {[%clk 0:00:20.3]} 44...
Rg1+ {[%clk 0:01:16.2]} 45. Kf3 {[%clk 0:00:19.8]} 45... Ra1 {[%clk 0:01:09.9]}
46. Nd7+ {[%clk 0:00:15.9]} 46... Kf7 {[%clk 0:01:09.9]} 47. Ne5+ {[%clk
0:00:15.1]} 47... Kf6 {[%clk 0:01:10.3]} 48. Nd7+ {[%clk 0:00:14.9]} 48... Kf5
{[%clk 0:01:08.5]} 49. Rd2 {[%clk 0:00:10.6]} 49... Bc3 {[%clk 0:00:56.5]} 50.
Rc2 {[%clk 0:00:10.5]} 50... Bd4 {[%clk 0:00:51.9]} 51. Rd2 {[%clk 0:00:10.3]}
51... Bg1 {[%clk 0:00:44.9]} 52. Re2 {[%clk 0:00:09.9]} 52... Bd4 {[%clk
0:00:43.3]} 53. Ne5 {[%clk 0:00:09.4]} 53... Rf1+ {[%clk 0:00:41]} 54. Kg2
{[%clk 0:00:09.2]} 54... Rg1+ {[%clk 0:00:41.5]} 55. Kf3 {[%clk 0:00:09.2]}
55... Rf1+ {[%clk 0:00:41]} 56. Kg2 {[%clk 0:00:09.7]} 56... Rb1 {[%clk
0:00:31.7]} 57. Nc6 {[%clk 0:00:09.6]} 57... Bf6 {[%clk 0:00:24.7]} 58. Kf3
{[%clk 0:00:09]} 58... Rf1+ {[%clk 0:00:24.3]} 59. Kg2 {[%clk 0:00:08.6]} 59...
Rc1 {[%clk 0:00:24.4]} 60. Ne7+ {[%clk 0:00:08.2]} 60... Bxe7 {[%clk 0:00:24]}
61. Rxe7 {[%clk 0:00:08.5]} 61... Rc2+ {[%clk 0:00:21.8]} 62. Kf3 {[%clk
0:00:08.8]} 62... Rc3+ {[%clk 0:00:22.3]} 63. Re3 {[%clk 0:00:06.9]} 63... Rc2
{[%clk 0:00:20]} 64. Re5+ {[%clk 0:00:06.5]} 64... Kf6 {[%clk 0:00:20.5]} 65.
Ra5 {[%clk 0:00:06.8]} 65... Rc7 {[%clk 0:00:18.9]} 66. Ra3 {[%clk 0:00:04.7]}
66... Kf5 {[%clk 0:00:16.5]} 67. Ra5+ {[%clk 0:00:04.5]} 67... Kf6 {[%clk
0:00:17]} 68. Kg2 {[%clk 0:00:05]} 68... Rb7 {[%clk 0:00:16.7]} 69. Kf3 {[%clk
0:00:04.9]} 69... Rc7 {[%clk 0:00:16.7]} 1/2-1/2

[Event "Late-Titled-Tuesday-Blitz-December-26-2023"]
[Site "Chess.com"]
[Date "2023.12.26"]
[Round "4"]
[White "matagordo"]
[Black "Bala-Afiada"]
[Result "0-1"]
[WhiteElo "2249"]
[BlackElo "2026"]
[TimeControl "180+1"]
[EndTime "14:41:01 PST"]
[Termination "Bala-Afiada won on time"]

1. d4 {[%clk 0:02:55.5]} 1... d5 {[%clk 0:03:00]} 2. Bf4 {[%clk 0:02:55.4]} 2...
Nf6 {[%clk 0:02:59.9]} 3. e3 {[%clk 0:02:55.9]} 3... c5 {[%clk 0:03:00.5]} 4.
Nf3 {[%clk 0:02:56.6]} 4... Nc6 {[%clk 0:03:00.3]} 5. Nbd2 {[%clk 0:02:56.8]}
5... Qb6 {[%clk 0:03:00.6]} 6. dxc5 {[%clk 0:02:53.7]} 6... Qxc5 {[%clk
0:02:58.3]} 7. c3 {[%clk 0:02:53.1]} 7... Bf5 {[%clk 0:02:44]} 8. h3 {[%clk
0:02:51.8]} 8... e6 {[%clk 0:02:42.3]} 9. Be2 {[%clk 0:02:49.1]} 9... Be7 {[%clk
0:02:32.4]} 10. O-O {[%clk 0:02:45.5]} 10... O-O {[%clk 0:02:32.2]} 11. Nb3
{[%clk 0:02:42.5]} 11... Qb6 {[%clk 0:02:30.5]} 12. Nh4 {[%clk 0:02:34.7]} 12...
Bg6 {[%clk 0:02:23.7]} 13. Nxg6 {[%clk 0:02:34.5]} 13... hxg6 {[%clk 0:02:24.6]}
14. Bf3 {[%clk 0:02:23.4]} 14... Rac8 {[%clk 0:02:17.5]} 15. Re1 {[%clk
0:02:09.5]} 15... Rfd8 {[%clk 0:02:07.8]} 16. Qb1 {[%clk 0:01:57.4]} 16... e5
{[%clk 0:02:02.8]} 17. Bg3 {[%clk 0:01:53.4]} 17... e4 {[%clk 0:02:02.9]} 18.
Be2 {[%clk 0:01:51.1]} 18... Bd6 {[%clk 0:01:54.4]} 19. Bxd6 {[%clk 0:01:37.3]}
19... Rxd6 {[%clk 0:01:55.3]} 20. Rd1 {[%clk 0:01:37.8]} 20... Ne5 {[%clk
0:01:36.8]} 21. Nd4 {[%clk 0:01:20.8]} 21... a6 {[%clk 0:01:30.6]} 22. Qc2
{[%clk 0:01:16.7]} 22... Qd8 {[%clk 0:01:25.9]} 23. Rac1 {[%clk 0:01:11.9]}
23... Qd7 {[%clk 0:01:14.4]} 24. Qb3 {[%clk 0:01:05.9]} 24... g5 {[%clk
0:01:12.4]} 25. c4 {[%clk 0:00:35.1]} 25... dxc4 {[%clk 0:01:01.4]} 26. Bxc4
{[%clk 0:00:35.5]} 26... Nxc4 {[%clk 0:00:50.2]} 27. Rxc4 {[%clk 0:00:35.3]}
27... Rxc4 {[%clk 0:00:49.7]} 28. Qxc4 {[%clk 0:00:35.9]} 28... Rc6 {[%clk
0:00:42.9]} 29. Qb3 {[%clk 0:00:28.8]} 29... Rd6 {[%clk 0:00:34.2]} 30. Rc1
{[%clk 0:00:27.3]} 30... b5 {[%clk 0:00:32.9]} 31. Qa3 {[%clk 0:00:26.4]} 31...
g4 {[%clk 0:00:30.7]} 32. hxg4 {[%clk 0:00:25.4]} 32... Nxg4 {[%clk 0:00:30.8]}
33. Qc5 {[%clk 0:00:24.2]} 33... Rd5 {[%clk 0:00:20.3]} 34. Qc8+ {[%clk
0:00:23.9]} 34... Qxc8 {[%clk 0:00:20.9]} 35. Rxc8+ {[%clk 0:00:23.7]} 35... Kh7
{[%clk 0:00:21.8]} 36. Rc6 {[%clk 0:00:23.4]} 36... a5 {[%clk 0:00:20.9]} 37. g3
{[%clk 0:00:22]} 37... Ne5 {[%clk 0:00:20.7]} 38. Rc7 {[%clk 0:00:21]} 38... f6
{[%clk 0:00:19.3]} 39. Kg2 {[%clk 0:00:17.9]} 39... b4 {[%clk 0:00:18]} 40. Nf5
{[%clk 0:00:16.9]} 40... Rd7 {[%clk 0:00:15.1]} 41. Rc5 {[%clk 0:00:13]} 41...
Kg6 {[%clk 0:00:14.7]} 42. Nh4+ {[%clk 0:00:12.5]} 42... Kf7 {[%clk 0:00:12.6]}
43. Rxa5 {[%clk 0:00:12.6]} 43... Nd3 {[%clk 0:00:12.5]} 44. Nf5 {[%clk
0:00:11.2]} 44... g6 {[%clk 0:00:11.9]} 45. Nd4 {[%clk 0:00:10.8]} 45... Nxb2
{[%clk 0:00:12.4]} 46. Rb5 {[%clk 0:00:10.1]} 46... Nd3 {[%clk 0:00:12.1]} 47.
Rb8 {[%clk 0:00:09.2]} 47... Rc7 {[%clk 0:00:12.1]} 48. Nb5 {[%clk 0:00:09.1]}
48... Rc2 {[%clk 0:00:11.7]} 49. Rb7+ {[%clk 0:00:08.3]} 49... Kf8 {[%clk
0:00:09.2]} 50. Rb8+ {[%clk 0:00:07.7]} 50... Kg7 {[%clk 0:00:09.8]} 51. Rb7+
{[%clk 0:00:08.1]} 51... Kh6 {[%clk 0:00:10.4]} 52. Nd4 {[%clk 0:00:04.7]} 52...
Rxf2+ {[%clk 0:00:10.2]} 53. Kg1 {[%clk 0:00:05.3]} 53... Rxa2 {[%clk 0:00:10]}
54. Ne6 {[%clk 0:00:04.5]} 54... Ra1+ {[%clk 0:00:10.3]} 55. Kg2 {[%clk
0:00:04.7]} 55... Ra2+ {[%clk 0:00:11.2]} 56. Kg1 {[%clk 0:00:05.3]} 56... Ra1+
{[%clk 0:00:09.1]} 57. Kg2 {[%clk 0:00:05.3]} 57... Rb1 {[%clk 0:00:10]} 58. Rb8
{[%clk 0:00:05.4]} 58... g5 {[%clk 0:00:09.6]} 59. Rh8+ {[%clk 0:00:05.4]} 59...
Kg6 {[%clk 0:00:10.3]} 60. Rd8 {[%clk 0:00:04.8]} 60... Kf7 {[%clk 0:00:10.6]}
61. Nd4 {[%clk 0:00:03]} 61... Rb2+ {[%clk 0:00:10.5]} 62. Kg1 {[%clk 0:00:03]}
62... Ne5 {[%clk 0:00:10.9]} 63. Rb8 {[%clk 0:00:02.8]} 63... Nf3+ {[%clk
0:00:10.3]} 64. Kf1 {[%clk 0:00:02]} 64... Nxd4 {[%clk 0:00:10.6]} 65. exd4
{[%clk 0:00:01.9]} 65... Ke6 {[%clk 0:00:11.5]} 66. Rb5 {[%clk 0:00:02]} 66...
b3 {[%clk 0:00:10.3]} 67. g4 {[%clk 0:00:02]} 67... e3 {[%clk 0:00:10.7]} 68.
Ke1 {[%clk 0:00:01.8]} 68... Rd2 {[%clk 0:00:08.8]} 69. Rxb3 {[%clk 0:00:02]}
69... Rxd4 {[%clk 0:00:09.5]} 70. Rxe3+ {[%clk 0:00:02.7]} 70... Kd5 {[%clk
0:00:09.1]} 71. Rg3 {[%clk 0:00:01.6]} 71... Rf4 {[%clk 0:00:08.9]} 72. Ke2
{[%clk 0:00:01.7]} 72... Ke4 {[%clk 0:00:09.6]} 73. Re3+ {[%clk 0:00:01.5]}
73... Kd4 {[%clk 0:00:10.2]} 74. Rg3 {[%clk 0:00:02.4]} 74... Re4+ {[%clk
0:00:09.9]} 75. Kf2 {[%clk 0:00:02.5]} 75... Ke5 {[%clk 0:00:10.4]} 76. Kg2
{[%clk 0:00:02.1]} 76... Kf4 {[%clk 0:00:10.8]} 77. Kh3 {[%clk 0:00:02.1]} 77...
Re3 {[%clk 0:00:11]} 78. Kg2 {[%clk 0:00:01.9]} 78... Rxg3+ {[%clk 0:00:10.7]}
79. Kf2 {[%clk 0:00:02.8]} 79... Rxg4 {[%clk 0:00:11]} 0-1

[Event "Late-Titled-Tuesday-Blitz-December-26-2023"]
[Site "Chess.com"]
[Date "2023.12.26"]
[Round "5"]
[White "carokannlover213"]
[Black "YurasovMat-2012"]
[Result "1-0"]
[WhiteElo "2684"]
[BlackElo "2535"]
[TimeControl "180+1"]
[EndTime "14:50:24 PST"]
[Termination "carokannlover213 won by resignation"]

1. e4 {[%clk 0:02:56.6]} 1... e5 {[%clk 0:02:48.6]} 2. Nf3 {[%clk 0:02:56.1]}
2... Nf6 {[%clk 0:02:48.5]} 3. d4 {[%clk 0:02:53.4]} 3... Nxe4 {[%clk
0:02:47.5]} 4. Bd3 {[%clk 0:02:53.8]} 4... Nc6 {[%clk 0:02:47.5]} 5. dxe5 {[%clk
0:02:50.9]} 5... Nc5 {[%clk 0:02:46.9]} 6. Be2 {[%clk 0:02:46.3]} 6... d6 {[%clk
0:02:46.9]} 7. exd6 {[%clk 0:02:46.4]} 7... Bxd6 {[%clk 0:02:47.8]} 8. O-O
{[%clk 0:02:46.8]} 8... O-O {[%clk 0:02:47.9]} 9. Nc3 {[%clk 0:02:47.4]} 9... a6
{[%clk 0:02:43.7]} 10. Bg5 {[%clk 0:02:44.6]} 10... Be7 {[%clk 0:02:43.4]} 11.
Bxe7 {[%clk 0:02:43.1]} 11... Qxe7 {[%clk 0:02:43.1]} 12. Re1 {[%clk 0:02:36.1]}
12... Rd8 {[%clk 0:02:39]} 13. Qc1 {[%clk 0:02:35.8]} 13... Qf6 {[%clk
0:02:36.6]} 14. Bc4 {[%clk 0:02:29.5]} 14... Be6 {[%clk 0:02:31.1]} 15. Bxe6
{[%clk 0:02:29.2]} 15... Nxe6 {[%clk 0:02:31.9]} 16. Ne4 {[%clk 0:02:24.8]}
16... Qg6 {[%clk 0:02:31.4]} 17. c3 {[%clk 0:02:20.1]} 17... Rd7 {[%clk
0:02:27.3]} 18. Qe3 {[%clk 0:02:16.9]} 18... Rad8 {[%clk 0:02:26.7]} 19. Nc5
{[%clk 0:02:03.5]} 19... Nxc5 {[%clk 0:02:21.8]} 20. Qe8+ {[%clk 0:01:57.1]} 1-0

[Event "Late-Titled-Tuesday-Blitz-December-26-2023"]
[Site "Chess.com"]
[Date "2023.12.26"]
[Round "5"]
[White "Korchmar_Vasiliy"]
[Black "DanylaBagrov"]
[Result "1-0"]
[WhiteElo "2800"]
[BlackElo "2574"]
[TimeControl "180+1"]
[EndTime "14:51:12 PST"]
[Termination "Korchmar_Vasiliy won by resignation"]

1. e4 {[%clk 0:03:00.9]} 1... d6 {[%clk 0:02:52.6]} 2. d4 {[%clk 0:03:01]} 2...
Nf6 {[%clk 0:02:53.4]} 3. Nc3 {[%clk 0:03:01.4]} 3... e5 {[%clk 0:02:54.2]} 4.
Nf3 {[%clk 0:03:01.2]} 4... Nbd7 {[%clk 0:02:53.7]} 5. Rg1 {[%clk 0:03:01.7]}
5... c6 {[%clk 0:02:51.3]} 6. g4 {[%clk 0:03:00.5]} 6... h6 {[%clk 0:02:51.9]}
7. Be3 {[%clk 0:02:57.8]} 7... Be7 {[%clk 0:02:51.7]} 8. h4 {[%clk 0:02:56.1]}
8... d5 {[%clk 0:02:27.8]} 9. exd5 {[%clk 0:02:35.1]} 9... e4 {[%clk 0:02:16.1]}
10. dxc6 {[%clk 0:02:29.3]} 10... bxc6 {[%clk 0:02:17]} 11. Ne5 {[%clk
0:01:58.3]} 11... Nxe5 {[%clk 0:02:02.2]} 12. dxe5 {[%clk 0:01:59.2]} 12... Nd5
{[%clk 0:01:59.3]} 13. Nxd5 {[%clk 0:01:55.4]} 13... cxd5 {[%clk 0:02:00.2]} 14.
Bb5+ {[%clk 0:01:54.7]} 14... Kf8 {[%clk 0:01:58.2]} 15. Bc6 {[%clk 0:01:44.7]}
15... Rb8 {[%clk 0:01:50.9]} 16. Qxd5 {[%clk 0:01:44.3]} 16... Rxb2 {[%clk
0:01:43.9]} 17. Qxd8+ {[%clk 0:01:44.2]} 17... Bxd8 {[%clk 0:01:44.8]} 18. O-O-O
{[%clk 0:01:44.6]} 1-0

[Event "Late-Titled-Tuesday-Blitz-December-26-2023"]
[Site "Chess.com"]
[Date "2023.12.26"]
[Round "5"]
[White "misterlamine"]
[Black "Alex_Banzea"]
[Result "0-1"]
[WhiteElo "2444"]
[BlackElo "2639"]
[TimeControl "180+1"]
[EndTime "14:51:28 PST"]
[Termination "Alex_Banzea won by resignation"]

1. d4 {[%clk 0:03:00.9]} 1... Nf6 {[%clk 0:02:59.4]} 2. c4 {[%clk 0:03:00]} 2...
g6 {[%clk 0:02:59.9]} 3. Nc3 {[%clk 0:02:58.8]} 3... Bg7 {[%clk 0:03:00.1]} 4.
e4 {[%clk 0:02:54]} 4... d6 {[%clk 0:02:55.8]} 5. Be2 {[%clk 0:02:52.6]} 5...
O-O {[%clk 0:02:55.6]} 6. Nf3 {[%clk 0:02:51.9]} 6... Qe8 {[%clk 0:02:54.5]} 7.
O-O {[%clk 0:02:51.3]} 7... e5 {[%clk 0:02:54.7]} 8. d5 {[%clk 0:02:51.7]} 8...
a5 {[%clk 0:02:54.6]} 9. Ne1 {[%clk 0:02:49.5]} 9... Na6 {[%clk 0:02:54.1]} 10.
Be3 {[%clk 0:02:43.7]} 10... Nd7 {[%clk 0:02:54.7]} 11. a3 {[%clk 0:02:42.9]}
11... f5 {[%clk 0:02:47.1]} 12. f3 {[%clk 0:02:42.9]} 12... f4 {[%clk
0:02:45.7]} 13. Bf2 {[%clk 0:02:42.5]} 13... g5 {[%clk 0:02:42.3]} 14. Nd3
{[%clk 0:02:41.8]} 14... Rf6 {[%clk 0:02:40.8]} 15. b4 {[%clk 0:02:41.3]} 15...
Rh6 {[%clk 0:02:39]} 16. Kh1 {[%clk 0:02:17.7]} 16... Qh5 {[%clk 0:02:39]} 17.
Bg1 {[%clk 0:02:17.7]} 17... Nf6 {[%clk 0:02:32.3]} 18. c5 {[%clk 0:01:58.6]}
18... g4 {[%clk 0:02:32.1]} 19. fxg4 {[%clk 0:01:57.6]} 19... Bxg4 {[%clk
0:02:03.8]} 20. Bf3 {[%clk 0:01:48.7]} 20... Kh8 {[%clk 0:01:59.4]} 21. cxd6
{[%clk 0:01:39]} 21... cxd6 {[%clk 0:01:59.6]} 22. Nb5 {[%clk 0:01:35.6]} 22...
Nxe4 {[%clk 0:01:55.4]} 0-1

[Event "Late-Titled-Tuesday-Blitz-December-26-2023"]
[Site "Chess.com"]
[Date "2023.12.26"]
[Round "5"]
[White "GiorgianBarbosa"]
[Black "egnfanclub"]
[Result "0-1"]
[WhiteElo "2499"]
[BlackElo "2358"]
[TimeControl "180+1"]
[EndTime "14:51:56 PST"]
[Termination "egnfanclub won by resignation"]

1. c4 {[%clk 0:03:00.9]} 1... c5 {[%clk 0:02:59.4]} 2. g3 {[%clk 0:03:00.6]}
2... Nf6 {[%clk 0:02:59.8]} 3. Bg2 {[%clk 0:03:01]} 3... d5 {[%clk 0:03:00.4]}
4. cxd5 {[%clk 0:02:58.3]} 4... Nxd5 {[%clk 0:03:00.4]} 5. Nf3 {[%clk
0:02:59.2]} 5... Nc6 {[%clk 0:03:00.4]} 6. O-O {[%clk 0:02:57.8]} 6... e5 {[%clk
0:03:00.2]} 7. Nc3 {[%clk 0:02:57]} 7... Nc7 {[%clk 0:03:00.3]} 8. d3 {[%clk
0:02:57.2]} 8... Be7 {[%clk 0:03:00.5]} 9. Nd2 {[%clk 0:02:55.8]} 9... O-O
{[%clk 0:02:59.5]} 10. Bxc6 {[%clk 0:02:55.6]} 10... bxc6 {[%clk 0:02:59.5]} 11.
Nc4 {[%clk 0:02:56.5]} 11... f6 {[%clk 0:02:56.9]} 12. Be3 {[%clk 0:02:53.2]}
12... Nd5 {[%clk 0:02:48.9]} 13. Ne4 {[%clk 0:02:50.3]} 13... Nxe3 {[%clk
0:02:48.2]} 14. Nxe3 {[%clk 0:02:49.7]} 14... f5 {[%clk 0:02:39.8]} 15. Nc3
{[%clk 0:02:46.1]} 15... f4 {[%clk 0:02:40.2]} 16. Nc4 {[%clk 0:02:45.4]} 16...
Bf6 {[%clk 0:02:17.5]} 17. Ne4 {[%clk 0:02:42.9]} 17... Qd5 {[%clk 0:02:07.3]}
18. Qc2 {[%clk 0:02:29.8]} 18... Bh3 {[%clk 0:02:04.9]} 19. Rfc1 {[%clk
0:02:23.9]} 19... fxg3 {[%clk 0:01:54.1]} 20. hxg3 {[%clk 0:02:23.9]} 20... Bg5
{[%clk 0:01:47]} 21. Kh2 {[%clk 0:01:36.8]} 21... Bxc1 {[%clk 0:01:45.7]} 22.
Rxc1 {[%clk 0:01:36.1]} 22... Rxf2+ {[%clk 0:01:36.2]} 23. Kxh3 {[%clk
0:01:35.6]} 23... Qe6+ {[%clk 0:01:35.2]} 0-1